bitfinex/quotes_BTCUSD_20250105
["timestamp","ask_amount","ask_price","bid_price","bid_amount"]
[1736068328059,0.09193649,97907.0,97897.0,0.18803612]
[1736068328267,0.204277,97906.0,97898.0,0.13691083]
[1736068328466,0.204277,97906.0,97899.0,1.53190317]
[1736068328693,0.29604269,97906.0,97900.0,0.13588949]
[1736068329177,0.29604269,97906.0,97900.0,0.14262273]
[1736068329925,0.00084547,97901.0,97900.0,0.14262273]
[1736068331619,0.00084547,97901.0,97900.0,0.14362273]
[1736068340679,0.00084547,97901.0,97900.0,0.14262273]
[1736068341056,0.00084547,97901.0,97900.0,0.14362273]
[1736068341464,0.00084547,97901.0,97900.0,0.14262273]
[1736068342271,0.00084547,97901.0,97900.0,0.14362273]
[1736068342970,0.00084547,97901.0,97900.0,0.14470813]
[1736068343177,0.00101627,97901.0,97900.0,0.14470813]
[1736068343679,0.00101627,97901.0,97900.0,0.14370813]
[1736068344105,0.00101627,97901.0,97900.0,0.14470813]
[1736068349058,0.00101627,97901.0,97900.0,0.22350813]
[1736068352822,0.00101627,97901.0,97900.0,0.22267575]
[1736068354036,0.00101627,97901.0,97900.0,0.92696575]
[1736068358822,0.00101627,97901.0,97900.0,1.09596575]
[1736068359801,0.00101627,97901.0,97900.0,2.59496575]
[1736068360009,0.00101627,97901.0,97900.0,2.59796575]
[1736068360249,0.00101627,97901.0,97900.0,2.59696575]
[1736068360812,0.00101627,97901.0,97900.0,1.09696575]
[1736068361654,0.00101627,97901.0,97900.0,1.10296575]
[1736068361869,0.00101627,97901.0,97900.0,1.09396575]
[1736068362065,0.00101627,97901.0,97900.0,1.09696575]
[1736068362271,0.00101627,97901.0,97900.0,1.10396575]
[1736068362531,0.00101627,97901.0,97900.0,1.09696575]
[1736068362794,0.00101627,97901.0,97900.0,1.09396575]
[1736068362976,0.00101627,97901.0,97900.0,1.10396575]
[1736068365730,0.00101627,97901.0,97900.0,1.08096575]
[1736068373254,0.00101627,97901.0,97900.0,2.58096575]
[1736068374095,0.00101627,97901.0,97900.0,1.08096575]
[1736068378795,0.00101627,97901.0,97900.0,1.04184575]
[1736068379555,0.00101627,97901.0,97900.0,0.96304575]
[1736068379970,0.00101627,97901.0,97900.0,0.85616575]
[1736068380321,0.00101627,97901.0,97900.0,0.86304575]
[1736068387400,0.00101627,97901.0,97900.0,0.85616575]
[1736068394835,0.00101627,97901.0,97900.0,0.94788214]
[1736068395041,0.00101627,97901.0,97900.0,1.02898214]
[1736068396097,0.00101627,97901.0,97900.0,0.93726575]
[1736068396968,0.00101627,97901.0,97900.0,1.08656575]
[1736068398597,0.00101627,97901.0,97900.0,1.10956575]
[1736068400118,0.00101627,97901.0,97900.0,1.55856653]
[1736068401477,0.00101627,97901.0,97900.0,1.42096313]
[1736068407303,0.00101627,97901.0,97900.0,1.42784313]
[1736068407500,0.00101627,97901.0,97900.0,2.92784313]
[1736068407899,0.0001708,97907.0,97906.0,0.204277]
[1736068408091,0.0001708,97907.0,97906.0,0.4168877]
[1736068408290,0.0001708,97907.0,97906.0,0.4225642]
[1736068409075,0.0001708,97907.0,97906.0,0.4285642]
[1736068409973,0.0001708,97907.0,97906.0,0.2242872]
[1736068410619,0.00022025,97907.0,97906.0,0.2242872]
[1736068411629,0.00022025,97907.0,97906.0,0.53571742]
[1736068412058,0.00022025,97907.0,97906.0,1.01013102]
[1736068412421,0.00022025,97907.0,97906.0,2.51013102]
[1736068412823,0.00022025,97907.0,97906.0,2.50613102]
[1736068413169,0.00022025,97907.0,97906.0,2.51113102]
[1736068413566,0.00022025,97907.0,97906.0,2.50913102]
[1736068413775,0.00022025,97907.0,97906.0,2.51213102]
[1736068414076,0.00022025,97907.0,97906.0,3.02225312]
[1736068414290,0.00022025,97907.0,97906.0,3.01925312]
[1736068414522,0.00022025,97907.0,97906.0,3.01425312]
[1736068414653,0.00022025,97907.0,97906.0,3.02225312]
[1736068415195,0.00022025,97907.0,97906.0,3.01425312]
[1736068415430,0.0001708,97910.0,97909.0,0.1]
[1736068415605,0.00012135,97911.0,97910.0,0.596]
[1736068415832,0.00012135,97911.0,97910.0,0.88561472]
[1736068416037,0.00012135,97911.0,97910.0,2.38561472]
[1736068416642,0.00012135,97911.0,97910.0,2.58988372]
[1736068417236,0.0001708,97916.0,97912.0,0.35]
[1736068417448,0.0001708,97931.0,97929.0,0.473]
[1736068417653,0.00022025,97930.0,97929.0,0.84299849]
[1736068418816,0.00022025,97930.0,97929.0,0.84799849]
[1736068419001,0.00022025,97930.0,97929.0,0.84299849]
[1736068419334,0.00022025,97930.0,97929.0,1.48654412]
[1736068419598,0.00022025,97930.0,97929.0,1.48054412]
[1736068420024,0.00022025,97930.0,97929.0,1.34599849]
[1736068420429,0.00022025,97930.0,97929.0,1.34299849]
[1736068420827,0.00022025,97930.0,97929.0,1.34599849]
[1736068421027,0.00022025,97930.0,97929.0,1.35199849]
[1736068421381,0.00022025,97930.0,97929.0,1.34299849]
[1736068421522,0.00022025,97930.0,97929.0,1.35499849]
[1736068423662,0.00022025,97930.0,97929.0,1.3654125]
[1736068426350,0.00022025,97930.0,97929.0,1.3614125]
[1736068426552,0.00022025,97930.0,97929.0,1.3664125]
[1736068426914,0.00022025,97930.0,97929.0,1.3595325]
[1736068427122,0.00022025,97930.0,97929.0,1.3614125]
[1736068427497,0.00022025,97930.0,97929.0,1.3664125]
[1736068427703,0.00022025,97930.0,97929.0,1.3584125]
[1736068427910,0.204567,97959.0,97940.0,0.1]
[1736068428110,0.204567,97959.0,97941.0,0.13675876]
[1736068428290,0.204567,97959.0,97941.0,0.10500717]
[1736068428853,0.204567,97959.0,97942.0,0.0773]
[1736068429053,0.204567,97959.0,97942.0,0.18230717]
[1736068431279,0.204567,97959.0,97942.0,0.18530717]
[1736068432309,0.204567,97959.0,97942.0,0.19030717]
[1736068434536,0.204567,97959.0,97942.0,0.22204932]
[1736068434744,0.204567,97959.0,97942.0,0.22102847]
[1736068439214,0.204567,97959.0,97942.0,0.231423]
[1736068440363,0.0004,97959.0,97942.0,0.231423]
[1736068445003,0.0004,97959.0,97942.0,0.22102847]
[1736068445232,0.0004,97959.0,97942.0,0.22790847]
[1736068447987,0.0004,97959.0,97943.0,0.2042]
[1736068448238,0.00048586,97959.0,97944.0,0.13674927]
[1736068448442,0.00048586,97959.0,97945.0,0.03862215]
[1736068448667,0.00048586,97959.0,97947.0,0.204191]
[1736068448879,0.00048586,97959.0,97949.0,0.204187]
[1736068449083,0.00048586,97959.0,97950.0,0.13674927]
[1736068449258,0.00048586,97959.0,97951.0,0.03174215]
[1736068449412,0.00048586,97959.0,97952.0,0.13572847]
[1736068449764,0.00048586,97959.0,97953.0,0.03174215]
[1736068449992,0.00048586,97959.0,97952.0,0.10398632]
[1736068449993,0.00048586,97959.0,97954.0,0.13572847]
[1736068450208,0.00048586,97959.0,97955.0,0.03174215]
[1736068450413,0.00048586,97959.0,97956.0,0.13572847]
[1736068450705,0.00048586,97959.0,97957.0,0.03174215]
[1736068450917,0.00048586,97959.0,97958.0,0.13572847]
[1736068451882,0.00065666,97959.0,97958.0,0.13572847]
[1736068452311,0.00065666,97959.0,97958.0,0.14260847]
[1736068452708,0.00065666,97959.0,97958.0,0.14360847]
[1736068453947,0.00065666,97959.0,97958.0,0.14460847]
[1736068460166,0.00065666,97959.0,97958.0,0.14360847]
[1736068460535,0.00065666,97959.0,97958.0,0.14460847]
[1736068460922,0.00065666,97959.0,97958.0,0.14760847]
[1736068461859,0.00065666,97959.0,97958.0,0.14560847]
[1736068462220,0.00065666,97959.0,97958.0,0.14760847]
[1736068472297,0.00065666,97959.0,97958.0,0.14072847]
[1736068481611,0.00065666,97959.0,97958.0,0.64072847]
[1736068482507,0.00065666,97959.0,97958.0,0.71922847]
[1736068483447,0.00065666,97959.0,97958.0,0.71422847]
[1736068483606,0.00065666,97959.0,97958.0,0.71722847]
[1736068483972,0.00065666,97959.0,97958.0,0.71622847]
[1736068484181,0.00065666,97959.0,97958.0,0.72022847]
[1736068484407,0.00065666,97959.0,97958.0,0.71822847]
[1736068484588,0.00065666,97959.0,97958.0,0.72022847]
[1736068485729,0.00065666,97959.0,97958.0,0.72710847]
[1736068486585,0.00065666,97959.0,97958.0,0.64860847]
[1736068492212,0.00065666,97959.0,97958.0,0.53774215]
[1736068492417,0.08025666,97959.0,97958.0,0.53774215]
[1736068492821,0.08025666,97959.0,97958.0,0.506]
[1736068492822,0.20724298,97959.0,97958.0,0.506]
[1736068493025,0.20724298,97959.0,97950.0,0.18286586]
[1736068493026,0.0478,97956.0,97950.0,0.18286586]
[1736068493275,0.487967,97951.0,97943.0,8.54e-05]
[1736068493653,0.204198,97944.0,97943.0,8.54e-05]
[1736068493823,0.283798,97944.0,97943.0,8.54e-05]
[1736068494064,0.283798,97944.0,97943.0,0.5000854]
[1736068495751,0.62246287,97944.0,97943.0,0.5000854]
[1736068496385,0.63249296,97944.0,97943.0,0.5000854]
[1736068496895,0.43130056,97944.0,97943.0,0.5000854]
[1736068497096,0.43430056,97944.0,97943.0,0.5000854]
[1736068497296,0.43530056,97944.0,97943.0,0.5000854]
[1736068498025,0.29782809,97944.0,97943.0,0.5000854]
[1736068498411,0.29482809,97944.0,97943.0,0.5000854]
[1736068498613,0.21422809,97944.0,97943.0,0.5000854]
[1736068498823,0.22422809,97944.0,97943.0,0.5010854]
[1736068500094,0.21722809,97944.0,97943.0,0.5000854]
[1736068500295,0.22122809,97944.0,97943.0,0.5010854]
[1736068500685,0.21622809,97944.0,97943.0,0.5000854]
[1736068500886,0.206198,97944.0,97943.0,0.5000854]
[1736068501213,0.207198,97944.0,97943.0,0.5000854]
[1736068501431,0.204198,97944.0,97943.0,0.5000854]
[1736068501940,0.206198,97944.0,97943.0,0.5000854]
[1736068502143,0.204198,97944.0,97943.0,0.5000854]
[1736068503662,0.206198,97944.0,97943.0,0.5000854]
[1736068507081,0.206198,97944.0,97943.0,8.54e-05]
[1736068517947,0.002,97944.0,97943.0,8.54e-05]
[1736068522742,0.204195,97946.0,97943.0,8.54e-05]
[1736068523186,0.002,97944.0,97943.0,8.54e-05]
[1736068523390,0.40839,97946.0,97943.0,8.54e-05]
[1736068524306,0.40839,97946.0,97943.0,0.0010854]
[1736068525630,0.40839,97946.0,97943.0,8.54e-05]
[1736068525828,0.40839,97946.0,97943.0,0.0010854]
[1736068533718,0.40839,97946.0,97944.0,0.03185423]
[1736068533831,0.40839,97946.0,97943.0,0.0010854]
[1736068534031,0.40839,97946.0,97944.0,0.03185442]
[1736068534235,0.40839,97946.0,97943.0,0.0010854]
[1736068535270,0.40839,97946.0,97944.0,0.03185406]
[1736068535503,0.40839,97946.0,97943.0,8.54e-05]
[1736068536544,0.40939,97946.0,97943.0,8.54e-05]
[1736068536747,0.40939,97946.0,97943.0,0.0010854]
[1736068536981,0.40839,97946.0,97943.0,0.0010854]
[1736068537198,0.204198,97944.0,97943.0,0.0010854]
[1736068537401,0.204198,97944.0,97943.0,0.03293338]
[1736068537844,0.29581305,97944.0,97943.0,0.0010854]
[1736068538741,0.29581305,97944.0,97943.0,8.54e-05]
[1736068539003,0.29581305,97944.0,97943.0,0.0329348]
[1736068539212,0.204198,97944.0,97943.0,0.0329348]
[1736068539702,0.18329663,97946.0,97943.0,0.0329348]
[1736068539915,0.18329663,97946.0,97944.0,0.0318494]
[1736068540144,0.18346743,97948.0,97945.0,0.1131494]
[1736068540376,0.18346743,97948.0,97946.0,0.13583572]
[1736068540589,0.18346743,97948.0,97947.0,0.0318494]
[1736068540795,0.18346743,97948.0,97947.0,0.13583572]
[1736068541318,0.0001708,97948.0,97947.0,0.13583572]
[1736068542136,0.0001708,97948.0,97947.0,0.63583572]
[1736068542726,0.0011708,97948.0,97947.0,0.63583572]
[1736068542939,0.0001708,97948.0,97947.0,0.63583572]
[1736068543334,0.0001708,97948.0,97947.0,0.63683572]
[1736068543750,0.0001708,97948.0,97947.0,0.63783572]
[1736068550510,0.0001708,97948.0,97947.0,0.71533572]
[1736068556301,0.0001708,97948.0,97947.0,0.71542112]
[1736068568894,0.2003538,97952.0,97947.0,0.71542112]
[1736068569097,0.2003538,97952.0,97948.0,0.13583572]
[1736068569425,0.2003538,97952.0,97949.0,0.0318494]
[1736068569596,0.2003538,97952.0,97950.0,0.10398632]
[1736068569793,0.2003538,97952.0,97951.0,0.0318494]
[1736068569971,0.2003538,97952.0,97951.0,0.13583572]
[1736068572068,0.09179139,97955.0,97951.0,0.13583572]
[1736068572273,0.09179139,97955.0,97952.0,0.13583572]
[1736068572564,0.204177,97954.0,97953.0,0.0318494]
[1736068572802,0.204177,97954.0,97953.0,0.13583572]
[1736068576893,0.204177,97954.0,97953.0,0.13683572]
[1736068577092,0.29596639,97956.0,97953.0,0.13683572]
[1736068577405,0.29596639,97956.0,97954.0,0.0318494]
[1736068577649,0.29596639,97956.0,97955.0,0.0318494]
[1736068578466,0.34251174,97959.0,97955.0,0.13583572]
[1736068578467,0.09179139,97957.0,97955.0,0.13583572]
[1736068578673,0.09179139,97957.0,97956.0,0.21453572]
[1736068579786,0.00065666,97959.0,97956.0,0.21453572]
[1736068579988,0.00065666,97959.0,97957.0,0.0318494]
[1736068580192,0.00065666,97959.0,97958.0,0.13583572]
[1736068582686,0.00165666,97959.0,97958.0,0.13583572]
[1736068583134,0.00065666,97959.0,97958.0,0.13583572]
[1736068583339,0.00065666,97959.0,97958.0,0.13683572]
[1736068583542,0.00065666,97959.0,97958.0,0.13783572]
[1736068603910,0.00065666,97959.0,97958.0,0.63783572]
[1736068608107,0.00065666,97959.0,97958.0,0.5338494]
[1736068610371,0.01084726,97959.0,97958.0,0.5338494]
[1736068611971,0.00065666,97959.0,97958.0,0.5338494]
[1736068622853,0.09244805,97959.0,97958.0,0.5338494]
[1736068624681,0.00065666,97959.0,97958.0,0.5338494]
[1736068635354,0.13834374,97959.0,97958.0,0.5338494]
[1736068636774,0.00065666,97959.0,97958.0,0.5338494]
[1736068636988,0.00065666,97959.0,97958.0,0.5797494]
[1736068637745,0.13834374,97959.0,97958.0,0.5797494]
[1736068638770,0.00065666,97959.0,97958.0,0.5797494]
[1736068641065,0.13834374,97959.0,97958.0,0.5797494]
[1736068647597,0.00065666,97959.0,97958.0,0.5797494]
[1736068648990,0.13834374,97959.0,97958.0,0.5797494]
[1736068652227,0.13834374,97959.0,97958.0,0.76103572]
[1736068652431,0.13834374,97959.0,97958.0,0.96520472]
[1736068652633,0.13834374,97959.0,97958.0,0.76103572]
[1736068653053,0.13834374,97959.0,97958.0,0.5338494]
[1736068653523,0.00065666,97959.0,97958.0,0.5338494]
[1736068655010,0.13834374,97959.0,97958.0,0.5338494]
[1736068657396,0.13834374,97959.0,97958.0,0.6111494]
[1736068658153,0.00065666,97959.0,97958.0,0.71513572]
[1736068658372,0.00065666,97959.0,97958.0,0.76043572]
[1736068660089,0.09256049,97959.0,97958.0,0.76043572]
[1736068662491,0.00065666,97959.0,97958.0,0.76043572]
[1736068664500,0.13721174,97960.0,97958.0,0.76043572]
[1736068664676,0.13721174,97960.0,97959.0,0.13583572]
[1736068666992,0.13721174,97960.0,97959.0,0.1349614]
[1736068667815,0.13721174,97960.0,97959.0,0.1359614]
[1736068673352,0.0001708,97962.0,97959.0,0.1359614]
[1736068673614,0.0001708,97962.0,97960.0,0.0318494]
[1736068673810,0.0001708,97962.0,97961.0,0.0318494]
[1736068675485,0.33942301,97962.0,97961.0,0.0318494]
[1736068677772,0.52271964,97962.0,97961.0,0.0318494]
[1736068678787,0.33942301,97962.0,97961.0,0.0318494]
[1736068679842,0.33942301,97962.0,97961.0,0.0328494]
[1736068680387,0.33942301,97962.0,97961.0,0.0318494]
[1736068680906,0.33942301,97962.0,97961.0,0.0328494]
[1736068682066,0.33942301,97962.0,97961.0,0.0318494]
[1736068682201,0.33942301,97962.0,97961.0,0.0328494]
[1736068683359,0.33942301,97962.0,97961.0,0.0338494]
[1736068683737,0.33942301,97962.0,97961.0,0.0328494]
[1736068684161,0.33942301,97962.0,97961.0,0.0338494]
[1736068688132,0.52271964,97962.0,97961.0,0.0338494]
[1736068693924,0.52271964,97962.0,97961.0,0.5338494]
[1736068699300,0.0001708,97962.0,97961.0,0.5338494]
[1736068700504,0.13801802,97962.0,97961.0,0.5338494]
[1736068702244,0.0001708,97962.0,97961.0,0.5338494]
[1736068703093,0.13801802,97962.0,97961.0,0.5338494]
[1736068706266,0.0001708,97962.0,97961.0,0.5338494]
[1736068707636,0.33939666,97962.0,97961.0,0.5338494]
[1736068721072,0.33939666,97962.0,97961.0,0.6116494]
[1736068725137,0.0001708,97962.0,97961.0,0.6116494]
[1736068725560,0.0001708,97962.0,97961.0,0.5338494]
[1736068731082,0.1380169,97962.0,97961.0,0.5338494]
[1736068732195,0.0001708,97962.0,97961.0,0.5338494]
[1736068743672,0.33941102,97962.0,97961.0,0.5338494]
[1736068744784,0.52270765,97962.0,97961.0,0.5338494]
[1736068746151,0.33941102,97962.0,97961.0,0.5338494]
[1736068748186,0.52270765,97962.0,97961.0,0.5338494]
[1736068749385,0.52270765,97962.0,97961.0,0.5318494]
[1736068749817,0.52370765,97962.0,97961.0,0.5318494]
[1736068758914,0.34041102,97962.0,97961.0,0.5318494]
[1736068759797,0.44611102,97962.0,97961.0,0.5]
[1736068760019,0.55009734,97962.0,97961.0,0.5]
[1736068760223,0.69849734,97962.0,97961.0,0.5]
[1736068760574,0.95248366,97962.0,97961.0,0.459168]
[1736068760780,0.95248366,97962.0,97961.0,0.377504]
[1736068760978,0.84849734,97962.0,97961.0,0.357088]
[1736068761549,1.32342167,97962.0,97961.0,0.357088]
[1736068761779,1.42342167,97962.0,97961.0,0.29584]
[1736068762005,0.1,97952.0,97947.0,8.54e-05]
[1736068762256,0.459889,97948.0,97947.0,8.54e-05]
[1736068762422,0.56387532,97948.0,97947.0,8.54e-05]
[1736068763621,0.56387532,97948.0,97947.0,0.0010854]
[1736068763838,0.57087532,97948.0,97947.0,0.0020854]
[1736068764042,0.91011554,97948.0,97947.0,0.0020854]
[1736068765015,0.91011554,97948.0,97947.0,0.0010854]
[1736068765351,1.14106494,97948.0,97947.0,0.0010854]
[1736068765771,1.151269,97948.0,97947.0,0.0010854]
[1736068766356,0.9223196,97948.0,97947.0,0.0010854]
[1736068766551,0.9153196,97948.0,97947.0,8.54e-05]
[1736068766797,0.9203196,97948.0,97947.0,0.0010854]
[1736068767006,0.9223196,97948.0,97947.0,0.0010854]
[1736068767206,0.9153196,97948.0,97947.0,8.54e-05]
[1736068767510,1.10537566,97948.0,97947.0,0.0010854]
[1736068768795,0.9223196,97948.0,97947.0,0.0010854]
[1736068768995,0.9203196,97948.0,97947.0,0.0010854]
[1736068769200,0.9223196,97948.0,97947.0,0.0010854]
[1736068770020,0.72034642,97948.0,97947.0,0.0010854]
[1736068771126,0.58307938,97948.0,97947.0,0.0010854]
[1736068773681,1.1037302,97948.0,97947.0,0.0010854]
[1736068774421,0.92067414,97948.0,97947.0,0.0010854]
[1736068775410,0.83797414,97948.0,97947.0,0.0010854]
[1736068775613,0.50037938,97948.0,97947.0,0.0010854]
[1736068776423,0.63751125,97948.0,97947.0,0.0010854]
[1736068777470,0.173,97947.0,97932.0,0.0756]
[1736068777672,0.204221,97933.0,97932.0,0.0756]
[1736068778507,0.204211,97938.0,97934.0,0.0756]
[1736068778706,0.15433593,97948.0,97935.0,0.10398632]
[1736068779035,0.204204,97942.0,97936.0,0.0756]
[1736068779189,0.204204,97942.0,97937.0,0.0756]
[1736068779808,0.408408,97942.0,97937.0,0.0756]
[1736068780304,0.409408,97942.0,97937.0,0.0756]
[1736068780508,0.408408,97942.0,97937.0,0.0756]
[1736068782172,0.408408,97942.0,97937.0,0.0766]
[1736068782685,0.408408,97942.0,97937.0,0.0766854]
[1736068783515,0.20421,97938.0,97937.0,0.0766854]
[1736068784272,0.20421,97938.0,97937.0,0.0756854]
[1736068784724,0.20421,97938.0,97937.0,0.0766854]
[1736068791243,0.21446823,97938.0,97937.0,0.0766854]
[1736068793349,0.20421,97938.0,97937.0,0.0766854]
[1736068793697,0.20421,97938.0,97937.0,0.0756854]
[1736068794101,0.20521,97938.0,97937.0,0.0756854]
[1736068801292,0.20521,97938.0,97937.0,8.54e-05]
[1736068803317,0.77259288,97938.0,97937.0,8.54e-05]
[1736068804511,0.54364348,97938.0,97937.0,8.54e-05]
[1736068805334,0.56664348,97938.0,97937.0,8.54e-05]
[1736068806919,0.56664348,97938.0,97929.0,8.54e-05]
[1736068807128,0.204225,97931.0,97929.0,8.54e-05]
[1736068808083,0.198625,97931.0,97929.0,8.54e-05]
[1736068808286,0.198625,97931.0,97930.0,0.00117126]
[1736068808483,0.53705848,97931.0,97930.0,0.00117126]
[1736068808696,0.53705848,97931.0,97930.0,0.00017126]
[1736068809059,0.53705848,97931.0,97930.0,0.00117126]
[1736068809261,0.53705848,97931.0,97930.0,0.00217126]
[1736068809660,0.53705848,97931.0,97930.0,0.00117126]
[1736068810287,0.53705848,97931.0,97930.0,0.00017126]
[1736068810581,0.53705848,97931.0,97930.0,0.00117126]
[1736068811622,0.53705848,97931.0,97930.0,0.00017126]
[1736068811968,0.53805848,97931.0,97930.0,0.00017126]
[1736068812172,0.61345848,97931.0,97930.0,0.00017126]
[1736068812381,0.61745848,97931.0,97930.0,0.00017126]
[1736068812791,0.8925647,97931.0,97930.0,0.00017126]
[1736068812994,0.8171647,97931.0,97930.0,0.00017126]
[1736068813229,0.8131647,97931.0,97930.0,0.00017126]
[1736068813433,0.8121647,97931.0,97930.0,0.00017126]
[1736068813654,0.8181647,97931.0,97930.0,0.00017126]
[1736068813862,0.54305848,97931.0,97930.0,0.00017126]
[1736068814225,0.55352545,97931.0,97930.0,0.00017126]
[1736068822170,0.21509197,97931.0,97930.0,0.00017126]
[1736068830126,0.21526277,97931.0,97930.0,0.00017126]
[1736068845387,0.55383461,97931.0,97930.0,0.00017126]
[1736068845543,0.20424,97924.0,97923.0,0.0754]
[1736068847443,0.54281184,97924.0,97923.0,0.0754]
[1736068848864,0.54481184,97924.0,97923.0,0.0754]
[1736068849761,0.82008713,97924.0,97923.0,0.0754]
[1736068850727,0.54481184,97924.0,97923.0,0.0754]
[1736068853809,0.54481184,97924.0,97923.0,0.0754854]
[1736068854848,0.54481184,97924.0,97923.0,8.54e-05]
[1736068858151,0.54281184,97924.0,97923.0,8.54e-05]
[1736068858357,0.54781184,97924.0,97923.0,8.54e-05]
[1736068858699,0.54381184,97924.0,97923.0,8.54e-05]
[1736068858906,0.54581184,97924.0,97923.0,8.54e-05]
[1736068859106,0.54481184,97924.0,97923.0,8.54e-05]
[1736068862811,0.85436324,97924.0,97923.0,8.54e-05]
[1736068863769,0.54481184,97924.0,97923.0,8.54e-05]
[1736068868502,0.5447332,97924.0,97923.0,8.54e-05]
[1736068873738,0.64871952,97924.0,97923.0,8.54e-05]
[1736068875289,1.10351952,97924.0,97923.0,4e-07]
[1736068875492,0.204285,97902.0,97894.0,8.54e-05]
[1736068875693,0.204285,97902.0,97901.0,0.00013485]
[1736068877863,0.54285684,97902.0,97901.0,0.00013485]
[1736068878288,0.54385684,97902.0,97901.0,0.00013485]
[1736068878515,0.55433634,97902.0,97901.0,0.00013485]
[1736068880625,0.55433634,97902.0,97901.0,0.08193485]
[1736068881419,0.55333634,97902.0,97901.0,0.08193485]
[1736068881826,0.55533634,97902.0,97901.0,0.08193485]
[1736068882035,0.55333634,97902.0,97901.0,0.08193485]
[1736068882246,0.55433634,97902.0,97901.0,0.08193485]
[1736068882879,0.73774855,97902.0,97901.0,0.08193485]
[1736068883862,0.55433634,97902.0,97901.0,0.08193485]
[1736068888843,0.73763933,97902.0,97901.0,0.08193485]
[1736068889126,0.73763933,97902.0,97901.0,0.00013485]
[1736068889937,0.55433634,97902.0,97901.0,0.00013485]
[1736068903309,0.55533634,97902.0,97901.0,0.00013485]
[1736068904141,0.55433634,97902.0,97901.0,0.00013485]
[1736068904615,0.55833634,97902.0,97901.0,0.00013485]
[1736068920510,0.83364238,97902.0,97901.0,0.00013485]
[1736068921871,0.55833634,97902.0,97901.0,0.00013485]
[1736068923190,0.66232266,97902.0,97901.0,0.00013485]
[1736068925209,0.97215526,97902.0,97901.0,0.00013485]
[1736068925912,0.2043,97895.0,97894.0,8.54e-05]
[1736068926166,0.2043,97895.0,97894.0,0.00013485]
[1736068927791,0.64685816,97895.0,97894.0,0.00013485]
[1736068928706,0.64785816,97895.0,97894.0,0.00013485]
[1736068931863,0.64685816,97895.0,97894.0,0.00013485]
[1736068932267,0.65285816,97895.0,97894.0,0.00113485]
[1736068932802,0.65485816,97895.0,97894.0,0.00113485]
[1736068933658,0.77785816,97895.0,97894.0,0.00113485]
[1736068934318,0.43928632,97895.0,97894.0,0.00113485]
[1736068935220,1.25214972,97895.0,97894.0,0.00113485]
[1736068936634,0.9279794,97895.0,97894.0,0.00113485]
[1736068938948,1.0044794,97895.0,97894.0,0.00113485]
[1736068940515,1.78810082,97895.0,97894.0,0.00113485]
[1736068942100,1.78810082,97895.0,97877.0,0.0808]
[1736068942101,0.204336,97878.0,97877.0,0.0808]
[1736068942302,0.204336,97878.0,97877.0,0.08129409]
[1736068944423,0.77218069,97878.0,97877.0,0.08129409]
[1736068945648,0.54302908,97878.0,97877.0,0.08129409]
[1736068946349,0.54402908,97878.0,97877.0,0.08129409]
[1736068946929,0.54402908,97878.0,97877.0,0.08137959]
[1736068947459,0.54702908,97878.0,97877.0,0.08137959]
[1736068948566,0.55702489,97878.0,97877.0,0.08137959]
[1736068949781,0.55702489,97878.0,97877.0,0.00057959]
[1736068952559,0.55702489,97878.0,97877.0,0.08357959]
[1736068953058,0.54702908,97878.0,97877.0,0.08357959]
[1736068953319,0.34269308,97878.0,97877.0,0.13317959]
[1736068953584,0.52596173,97878.0,97877.0,0.26904827]
[1736068953997,0.52496173,97878.0,97877.0,0.26904827]
[1736068954215,0.52196173,97878.0,97877.0,0.26904827]
[1736068954415,0.39386173,97878.0,97877.0,0.26904827]
[1736068954650,0.34386173,97878.0,97877.0,0.26904827]
[1736068954869,0.09165332,97890.0,97877.0,0.13644827]
[1736068955073,0.09165332,97890.0,97886.0,0.204318]
[1736068955275,0.09165332,97890.0,97889.0,0.204313]
[1736068955478,0.09165332,97890.0,97889.0,0.47278168]
[1736068956245,0.09165332,97908.0,97898.0,0.1326]
[1736068956447,0.09165332,97908.0,97899.0,0.18800767]
[1736068956769,0.204279,97906.0,97899.0,0.18800767]
[1736068956972,0.204279,97906.0,97899.0,0.18698632]
[1736068958589,0.204279,97906.0,97899.0,0.19098632]
[1736068958925,0.204279,97906.0,97899.0,0.18798632]
[1736068959099,0.204288,97901.0,97899.0,0.084]
[1736068959306,0.204288,97901.0,97899.0,0.086]
[1736068960634,0.204288,97901.0,97899.0,0.088]
[1736068960842,0.204288,97901.0,97899.0,0.085]
[1736068961043,0.204288,97901.0,97899.0,0.083]
[1736068961246,0.204288,97901.0,97899.0,0.086]
[1736068961444,0.204288,97901.0,97899.0,0.084]
[1736068962078,0.204288,97901.0,97899.0,0.083]
[1736068962513,0.001171,97900.0,97899.0,0.083]
[1736068967464,0.204308,97891.0,97886.0,0.0753]
[1736068967672,0.204308,97891.0,97887.0,0.10398632]
[1736068968125,0.204302,97895.0,97887.0,0.10398632]
[1736068968531,0.204311,97890.0,97887.0,0.10398632]
[1736068968917,0.204311,97890.0,97887.0,0.10798632]
[1736068969288,0.204311,97890.0,97887.0,0.10398632]
[1736068969450,0.204311,97890.0,97887.0,0.10798632]
[1736068970310,0.408622,97890.0,97887.0,0.10798632]
[1736068970454,0.204311,97890.0,97887.0,0.10798632]
[1736068970660,0.204311,97890.0,97887.0,0.10598632]
[1736068971187,0.204311,97890.0,97887.0,0.10698632]
[1736068971464,0.204311,97890.0,97887.0,0.10498632]
[1736068971674,0.408622,97890.0,97887.0,0.002]
[1736068972300,0.408622,97890.0,97887.0,0.001]
[1736068972501,0.204333,97879.0,97878.0,8.54e-05]
[1736068977593,0.21479414,97879.0,97878.0,8.54e-05]
[1736068982221,0.21679414,97879.0,97878.0,8.54e-05]
[1736068984909,0.21696494,97879.0,97878.0,8.54e-05]
[1736068988496,0.34286494,97879.0,97878.0,8.54e-05]
[1736068996908,0.26216494,97879.0,97878.0,8.54e-05]
[1736068997540,0.21696494,97879.0,97878.0,8.54e-05]
[1736069015844,0.55523984,97879.0,97878.0,8.54e-05]
[1736069101928,0.5447787,97879.0,97878.0,8.54e-05]
[1736069102222,0.5447787,97879.0,97878.0,0.0767854]
[1736069102427,0.3404457,97879.0,97878.0,0.0767854]
[1736069102555,0.3404457,97879.0,97878.0,0.2127034]
[1736069103847,0.3384457,97879.0,97878.0,0.2127034]
[1736069104051,0.3394457,97879.0,97878.0,0.2127034]
[1736069104263,0.3394457,97879.0,97878.0,0.2137034]
[1736069104471,0.0011708,97879.0,97878.0,0.2137034]
[1736069105217,0.0001708,97879.0,97878.0,0.2137034]
[1736069105622,0.0001708,97879.0,97878.0,0.2147034]
[1736069112851,0.0001708,97879.0,97878.0,0.2629034]
[1736069113925,0.0001708,97879.0,97878.0,0.2619034]
[1736069114312,0.0001708,97879.0,97878.0,0.2659034]
[1736069114467,0.0001708,97879.0,97878.0,0.2649034]
[1736069114668,0.0001708,97879.0,97878.0,0.2669034]
[1736069115272,0.0001708,97879.0,97878.0,0.2649034]
[1736069115475,0.0001708,97879.0,97878.0,0.2669034]
[1736069116022,0.0001708,97879.0,97878.0,0.2649034]
[1736069116240,0.0001708,97879.0,97878.0,0.2609034]